[Event "Early-Titled-Tuesday-Blitz-January-30-2024"]
[Site "Chess.com"]
[Date "2024.01.30"]
[Round "11"]
[White "YairParkhov"]
[Black "the_chess_child"]
[Result "1/2-1/2"]
[WhiteElo "2694"]
[BlackElo "2866"]
[TimeControl "180+1"]
[EndTime "10:12:42 PST"]
[Termination "Game drawn - insufficient material"]

1. c4 {[%clk 0:03:00.9]} 1... e5 {[%clk 0:02:56.6]} 2. g3 {[%clk 0:03:00.3]}
2... h5 {[%clk 0:02:55.3]} 3. Nf3 {[%clk 0:02:59.7]} 3... e4 {[%clk 0:02:54.7]}
4. Nh4 {[%clk 0:03:00.3]} 4... c6 {[%clk 0:02:38.6]} 5. d3 {[%clk 0:02:58.1]}
5... exd3 {[%clk 0:02:37.4]} 6. Qxd3 {[%clk 0:02:59]} 6... d6 {[%clk 0:02:35.5]}
7. Nc3 {[%clk 0:02:58.8]} 7... Nd7 {[%clk 0:02:30.3]} 8. Bf4 {[%clk 0:02:40.2]}
8... Ne5 {[%clk 0:02:21.6]} 9. Qd4 {[%clk 0:02:19.6]} 9... Qc7 {[%clk
0:02:08.5]} 10. O-O-O {[%clk 0:02:16]} 10... Be6 {[%clk 0:02:03.7]} 11. c5
{[%clk 0:01:55.9]} 11... O-O-O {[%clk 0:01:55.8]} 12. cxd6 {[%clk 0:01:56]}
12... Bxd6 {[%clk 0:01:56]} 13. Qxa7 {[%clk 0:01:56.6]} 13... Nf6 {[%clk
0:01:42]} 14. e4 {[%clk 0:01:43.2]} 14... Nfd7 {[%clk 0:01:06.1]} 15. Be2 {[%clk
0:01:31.1]} 15... f6 {[%clk 0:01:02.8]} 16. Nf5 {[%clk 0:01:06.9]} 16... Bc5
{[%clk 0:00:50.8]} 17. Qa8+ {[%clk 0:01:06.4]} 17... Nb8 {[%clk 0:00:50.6]} 18.
Be3 {[%clk 0:00:56.4]} 18... Bxe3+ {[%clk 0:00:45.1]} 19. Nxe3 {[%clk
0:00:56.3]} 19... Rxd1+ {[%clk 0:00:33.5]} 20. Rxd1 {[%clk 0:00:55.4]} 20... Rd8
{[%clk 0:00:34]} 21. Rxd8+ {[%clk 0:00:53.9]} 21... Qxd8 {[%clk 0:00:34.9]} 22.
Qa7 {[%clk 0:00:49.1]} 22... g5 {[%clk 0:00:32.2]} 23. Na4 {[%clk 0:00:36.7]}
23... Nd3+ {[%clk 0:00:27.5]} 24. Bxd3 {[%clk 0:00:35.1]} 24... Qxd3 {[%clk
0:00:28.4]} 25. Qxb7+ {[%clk 0:00:34.6]} 25... Kxb7 {[%clk 0:00:28.1]} 26. Nc5+
{[%clk 0:00:35.1]} 26... Kb6 {[%clk 0:00:27]} 27. Nxd3 {[%clk 0:00:36]} 27...
Bxa2 {[%clk 0:00:27.6]} 28. e5 {[%clk 0:00:27.5]} 28... Nd7 {[%clk 0:00:24.7]}
29. f4 {[%clk 0:00:25.5]} 29... gxf4 {[%clk 0:00:20.1]} 30. gxf4 {[%clk
0:00:24.1]} 30... fxe5 {[%clk 0:00:20.8]} 31. Nxe5 {[%clk 0:00:24.5]} 31... Nxe5
{[%clk 0:00:20.5]} 32. fxe5 {[%clk 0:00:25.4]} 32... Kc5 {[%clk 0:00:21.2]} 33.
Nf5 {[%clk 0:00:22.3]} 33... Kd5 {[%clk 0:00:20]} 34. Ne7+ {[%clk 0:00:17.5]}
34... Kxe5 {[%clk 0:00:18.5]} 35. Nxc6+ {[%clk 0:00:17.8]} 35... Kf4 {[%clk
0:00:19.2]} 36. Kd2 {[%clk 0:00:15.6]} 36... Kf3 {[%clk 0:00:19]} 37. Ke1 {[%clk
0:00:13.7]} 37... Kg2 {[%clk 0:00:18.9]} 38. h4 {[%clk 0:00:13.7]} 38... Kg3
{[%clk 0:00:18.8]} 39. Nb4 {[%clk 0:00:13.1]} 39... Bc4 {[%clk 0:00:17.8]} 40.
Nc2 {[%clk 0:00:13.2]} 40... Kxh4 {[%clk 0:00:18.1]} 41. Kf2 {[%clk 0:00:13.9]}
41... Kg5 {[%clk 0:00:17.7]} 42. Ne3 {[%clk 0:00:14.6]} 42... Be6 {[%clk
0:00:17.3]} 43. Kg3 {[%clk 0:00:14.7]} 43... h4+ {[%clk 0:00:17.6]} 44. Kf3
{[%clk 0:00:15.3]} 44... h3 {[%clk 0:00:17.3]} 45. Kg3 {[%clk 0:00:15.8]} 45...
Kf6 {[%clk 0:00:17.6]} 46. Nd1 {[%clk 0:00:15.4]} 46... Ke5 {[%clk 0:00:18]} 47.
Nf2 {[%clk 0:00:15.8]} 47... Kd4 {[%clk 0:00:18.5]} 48. Nxh3 {[%clk 0:00:16.1]}
48... Bxh3 {[%clk 0:00:19.3]} 49. Kxh3 {[%clk 0:00:16.4]} 49... Kc4 {[%clk
0:00:20]} 50. Kg4 {[%clk 0:00:10.1]} 50... Kb4 {[%clk 0:00:20.9]} 51. Kf4 {[%clk
0:00:10.2]} 51... Kb3 {[%clk 0:00:21.6]} 52. Ke5 {[%clk 0:00:10.3]} 52... Kxb2
{[%clk 0:00:21.7]} 1/2-1/2

[Event "Early-Titled-Tuesday-Blitz-January-30-2024"]
[Site "Chess.com"]
[Date "2024.01.30"]
[Round "11"]
[White "karinachess1"]
[Black "verrbaa"]
[Result "0-1"]
[WhiteElo "2616"]
[BlackElo "2491"]
[TimeControl "180+1"]
[EndTime "10:12:44 PST"]
[Termination "verrbaa won by resignation"]

1. c4 {[%clk 0:03:00.4]} 1... Nf6 {[%clk 0:02:54.5]} 2. Nc3 {[%clk 0:03:00.2]}
2... g6 {[%clk 0:02:50.2]} 3. Nf3 {[%clk 0:02:56.8]} 3... Bg7 {[%clk 0:02:49.9]}
4. e4 {[%clk 0:02:57]} 4... d6 {[%clk 0:02:49.2]} 5. d4 {[%clk 0:02:57.1]} 5...
O-O {[%clk 0:02:49.5]} 6. Be2 {[%clk 0:02:57.5]} 6... e5 {[%clk 0:02:48.6]} 7.
O-O {[%clk 0:02:57.5]} 7... Nc6 {[%clk 0:02:49]} 8. d5 {[%clk 0:02:57]} 8... Ne7
{[%clk 0:02:49.1]} 9. Ne1 {[%clk 0:02:57.4]} 9... Nd7 {[%clk 0:02:16.4]} 10. Be3
{[%clk 0:02:56.9]} 10... f5 {[%clk 0:02:15.4]} 11. f3 {[%clk 0:02:57.2]} 11...
f4 {[%clk 0:02:15.2]} 12. Bf2 {[%clk 0:02:57.6]} 12... g5 {[%clk 0:02:14.1]} 13.
Nd3 {[%clk 0:02:57.7]} 13... b6 {[%clk 0:01:55]} 14. b4 {[%clk 0:02:56.2]} 14...
a5 {[%clk 0:01:54.6]} 15. a3 {[%clk 0:02:56.6]} 15... Nf6 {[%clk 0:01:27.6]} 16.
c5 {[%clk 0:02:54.6]} 16... h5 {[%clk 0:01:25.1]} 17. Rc1 {[%clk 0:02:47.4]}
17... axb4 {[%clk 0:01:20.2]} 18. axb4 {[%clk 0:02:47.3]} 18... bxc5 {[%clk
0:01:18.2]} 19. bxc5 {[%clk 0:02:48.2]} 19... g4 {[%clk 0:01:17.7]} 20. cxd6
{[%clk 0:02:42.3]} 20... cxd6 {[%clk 0:01:17.6]} 21. Nb5 {[%clk 0:02:42.7]}
21... g3 {[%clk 0:01:14.7]} 22. hxg3 {[%clk 0:02:38.9]} 22... fxg3 {[%clk
0:01:15.6]} 23. Bxg3 {[%clk 0:02:38.2]} 23... Qb6+ {[%clk 0:01:15.2]} 24. Bf2
{[%clk 0:02:30.9]} 24... Qxb5 {[%clk 0:01:14.4]} 25. Nxe5 {[%clk 0:02:29.8]}
25... Qe8 {[%clk 0:01:14.2]} 26. Nc6 {[%clk 0:02:24.1]} 26... Ng6 {[%clk
0:01:10.7]} 27. Bg3 {[%clk 0:02:17.3]} 27... Qd7 {[%clk 0:00:55.5]} 28. Nd4
{[%clk 0:02:08.9]} 28... h4 {[%clk 0:00:50.6]} 29. Bb5 {[%clk 0:02:03.8]} 29...
Qa7 {[%clk 0:00:31.6]} 30. Bf2 {[%clk 0:02:01.6]} 30... Qf7 {[%clk 0:00:29.2]}
31. Rc6 {[%clk 0:01:45.2]} 31... Nh5 {[%clk 0:00:22.9]} 32. Rxd6 {[%clk
0:01:24.3]} 32... Be5 {[%clk 0:00:23]} 33. Re6 {[%clk 0:01:16.1]} 33... Qf4
{[%clk 0:00:18.9]} 34. Rxg6+ {[%clk 0:01:11.4]} 34... Kh7 {[%clk 0:00:19.1]} 35.
Re1 {[%clk 0:00:57.2]} 35... Qh2+ {[%clk 0:00:18.8]} 36. Kf1 {[%clk 0:00:57.5]}
36... Kxg6 {[%clk 0:00:19.2]} 37. Ne2 {[%clk 0:00:50.5]} 37... Ng3+ {[%clk
0:00:16.9]} 38. Nxg3 {[%clk 0:00:49.5]} 38... hxg3 {[%clk 0:00:17.8]} 39. Bg1
{[%clk 0:00:49.8]} 39... Qh1 {[%clk 0:00:10.2]} 40. d6 {[%clk 0:00:24.1]} 40...
Bh3 {[%clk 0:00:09.8]} 41. Qe2 {[%clk 0:00:18.5]} 41... Rxf3+ {[%clk 0:00:02.9]}
42. Qxf3 {[%clk 0:00:18.4]} 42... Rf8 {[%clk 0:00:03]} 43. Ke2 {[%clk
0:00:07.3]} 43... Rxf3 {[%clk 0:00:02.5]} 44. gxf3 {[%clk 0:00:07.9]} 44... Qg2+
{[%clk 0:00:02.4]} 45. Kd1 {[%clk 0:00:08]} 45... Qxf3+ {[%clk 0:00:02.1]} 46.
Be2 {[%clk 0:00:07.3]} 46... Qb3+ {[%clk 0:00:02.2]} 47. Kc1 {[%clk 0:00:06.8]}
47... Bf4+ {[%clk 0:00:02.4]} 0-1

[Event "Early-Titled-Tuesday-Blitz-January-30-2024"]
[Site "Chess.com"]
[Date "2024.01.30"]
[Round "11"]
[White "dretch"]
[Black "TigrVShlyape"]
[Result "0-1"]
[WhiteElo "2804"]
[BlackElo "2928"]
[TimeControl "180+1"]
[EndTime "10:12:46 PST"]
[Termination "TigrVShlyape won on time"]

1. d4 {[%clk 0:03:00.9]} 1... f5 {[%clk 0:02:56.5]} 2. g3 {[%clk 0:02:58.6]}
2... Nf6 {[%clk 0:02:56.3]} 3. Bg2 {[%clk 0:02:58.8]} 3... g6 {[%clk 0:02:56.7]}
4. Nh3 {[%clk 0:02:59]} 4... Bg7 {[%clk 0:02:56.5]} 5. O-O {[%clk 0:02:58.4]}
5... O-O {[%clk 0:02:55]} 6. Nf4 {[%clk 0:02:58.3]} 6... d6 {[%clk 0:02:51.1]}
7. Nc3 {[%clk 0:02:56.6]} 7... c6 {[%clk 0:02:44.4]} 8. e4 {[%clk 0:02:53.4]}
8... e5 {[%clk 0:02:35.4]} 9. dxe5 {[%clk 0:02:51.4]} 9... dxe5 {[%clk
0:02:35.6]} 10. Qxd8 {[%clk 0:02:51.4]} 10... Rxd8 {[%clk 0:02:35.1]} 11. Nd3
{[%clk 0:02:51.8]} 11... Na6 {[%clk 0:02:25.7]} 12. Re1 {[%clk 0:02:46.8]} 12...
Nd7 {[%clk 0:02:07.8]} 13. Be3 {[%clk 0:02:27.2]} 13... Nf8 {[%clk 0:01:54.9]}
14. Rad1 {[%clk 0:02:21]} 14... Ne6 {[%clk 0:01:49.7]} 15. Bc1 {[%clk
0:01:56.7]} 15... Nd4 {[%clk 0:01:46.5]} 16. Bg5 {[%clk 0:01:54.4]} 16... Re8
{[%clk 0:01:41.6]} 17. f4 {[%clk 0:01:49.8]} 17... Nxc2 {[%clk 0:01:39.8]} 18.
Re2 {[%clk 0:01:48.1]} 18... Nd4 {[%clk 0:01:40]} 19. Rf2 {[%clk 0:01:42.5]}
19... exf4 {[%clk 0:01:35.8]} 20. gxf4 {[%clk 0:01:31]} 20... Nc7 {[%clk
0:01:26.8]} 21. e5 {[%clk 0:01:07.8]} 21... Nce6 {[%clk 0:01:20.3]} 22. Bh4
{[%clk 0:01:07.1]} 22... Bf8 {[%clk 0:01:19.2]} 23. Rfd2 {[%clk 0:01:02.2]}
23... Bh6 {[%clk 0:01:09.3]} 24. Bf2 {[%clk 0:01:01.3]} 24... a5 {[%clk
0:00:57.4]} 25. Na4 {[%clk 0:00:54]} 25... Nb5 {[%clk 0:00:48]} 26. Be3 {[%clk
0:00:47.7]} 26... Nbc7 {[%clk 0:00:42.5]} 27. Nb6 {[%clk 0:00:45.9]} 27... Rb8
{[%clk 0:00:38.6]} 28. Nc5 {[%clk 0:00:39.3]} 28... Bxf4 {[%clk 0:00:34.5]} 29.
Bxf4 {[%clk 0:00:36.7]} 29... Nxf4 {[%clk 0:00:34.7]} 30. Ncd7 {[%clk
0:00:27.7]} 30... Bxd7 {[%clk 0:00:34.7]} 31. Nxd7 {[%clk 0:00:26.9]} 31... Nxg2
{[%clk 0:00:27.6]} 32. Kxg2 {[%clk 0:00:21]} 32... Nd5 {[%clk 0:00:27.1]} 33.
Nxb8 {[%clk 0:00:14.5]} 33... Rxb8 {[%clk 0:00:23.4]} 34. Kf3 {[%clk 0:00:14.7]}
34... Kf7 {[%clk 0:00:22.7]} 35. Re1 {[%clk 0:00:11.7]} 35... Ke6 {[%clk
0:00:23]} 36. h4 {[%clk 0:00:11.5]} 36... Rg8 {[%clk 0:00:19.5]} 37. a3 {[%clk
0:00:09.5]} 37... h6 {[%clk 0:00:17.8]} 38. Rh2 {[%clk 0:00:06.1]} 38... a4
{[%clk 0:00:17.6]} 39. Rhh1 {[%clk 0:00:04.8]} 39... Nb6 {[%clk 0:00:15.5]} 40.
Rh2 {[%clk 0:00:04.6]} 40... Nc4 {[%clk 0:00:15.5]} 41. Kf4 {[%clk 0:00:05]}
41... g5+ {[%clk 0:00:15.3]} 42. hxg5 {[%clk 0:00:04]} 42... hxg5+ {[%clk
0:00:15.7]} 43. Kg3 {[%clk 0:00:04.3]} 43... f4+ {[%clk 0:00:14.4]} 44. Kf2
{[%clk 0:00:04.4]} 44... Nxe5 {[%clk 0:00:14.5]} 45. Rh7 {[%clk 0:00:04.2]}
45... Kf5 {[%clk 0:00:13.9]} 46. Rd1 {[%clk 0:00:03.9]} 46... b5 {[%clk
0:00:13.7]} 47. Rc7 {[%clk 0:00:03.4]} 47... Rh8 {[%clk 0:00:13]} 48. Kg2 {[%clk
0:00:02.4]} 48... g4 {[%clk 0:00:12.1]} 49. Rg1 {[%clk 0:00:01.1]} 49... g3
{[%clk 0:00:11.7]} 50. Rf1 {[%clk 0:00:01.1]} 50... Rh2+ {[%clk 0:00:11.2]} 51.
Kg1 {[%clk 0:00:01.8]} 51... f3 {[%clk 0:00:11.6]} 0-1

[Event "Early-Titled-Tuesday-Blitz-January-30-2024"]
[Site "Chess.com"]
[Date "2024.01.30"]
[Round "11"]
[White "Better_Chess_Faster"]
[Black "NowInChess"]
[Result "0-1"]
[WhiteElo "2132"]
[BlackElo "2283"]
[TimeControl "180+1"]
[EndTime "10:12:47 PST"]
[Termination "NowInChess won by checkmate"]

1. d4 {[%clk 0:02:57.2]} 1... Nf6 {[%clk 0:02:59]} 2. Bg5 {[%clk 0:02:56.5]}
2... e6 {[%clk 0:02:58.4]} 3. e4 {[%clk 0:02:55.7]} 3... h6 {[%clk 0:02:57.9]}
4. Bxf6 {[%clk 0:02:55.4]} 4... Qxf6 {[%clk 0:02:58.8]} 5. c3 {[%clk 0:02:45.6]}
5... d5 {[%clk 0:02:58.1]} 6. e5 {[%clk 0:02:44.7]} 6... Qd8 {[%clk 0:02:57.7]}
7. Nf3 {[%clk 0:02:43.4]} 7... c5 {[%clk 0:02:57.3]} 8. Bd3 {[%clk 0:02:41.6]}
8... Nc6 {[%clk 0:02:56.7]} 9. O-O {[%clk 0:02:41.1]} 9... Qb6 {[%clk
0:02:53.5]} 10. Re1 {[%clk 0:02:33.6]} 10... Qxb2 {[%clk 0:02:41.8]} 11. Nbd2
{[%clk 0:02:21.4]} 11... Qxc3 {[%clk 0:02:41.8]} 12. Bb5 {[%clk 0:02:19.2]}
12... Bd7 {[%clk 0:02:34]} 13. dxc5 {[%clk 0:02:15.5]} 13... Bxc5 {[%clk
0:02:08.2]} 14. Rc1 {[%clk 0:02:14.2]} 14... Qb4 {[%clk 0:02:04.9]} 15. Bxc6
{[%clk 0:02:06.7]} 15... bxc6 {[%clk 0:01:59.2]} 16. Nb3 {[%clk 0:02:01.8]}
16... Be7 {[%clk 0:01:51.5]} 17. Re2 {[%clk 0:01:35.2]} 17... c5 {[%clk
0:01:45.1]} 18. Rb2 {[%clk 0:01:31.1]} 18... c4 {[%clk 0:01:31]} 19. Nc5 {[%clk
0:01:20.7]} 19... Qxc5 {[%clk 0:01:27.9]} 20. Rb7 {[%clk 0:01:17.5]} 20... Bc6
{[%clk 0:01:20.5]} 21. Rc7 {[%clk 0:01:13.9]} 21... Qb6 {[%clk 0:01:20.4]} 22.
Rxe7+ {[%clk 0:01:11.2]} 22... Kxe7 {[%clk 0:01:20.1]} 23. Nd4 {[%clk
0:01:05.1]} 23... Rab8 {[%clk 0:01:11.9]} 24. f4 {[%clk 0:01:03.6]} 24... Rhc8
{[%clk 0:01:05.7]} 25. h3 {[%clk 0:00:59.3]} 25... Ba4 {[%clk 0:01:01.7]} 26.
Qd2 {[%clk 0:00:50.9]} 26... Qb2 {[%clk 0:00:56.8]} 27. Qe3 {[%clk 0:00:50.8]}
27... c3 {[%clk 0:00:46.5]} 28. f5 {[%clk 0:00:37.6]} 28... Qd2 {[%clk
0:00:29.2]} 29. f6+ {[%clk 0:00:33.9]} 29... Kf8 {[%clk 0:00:25.7]} 30. fxg7+
{[%clk 0:00:33]} 30... Kg8 {[%clk 0:00:18.7]} 31. Re1 {[%clk 0:00:26]} 31...
Qxe3+ {[%clk 0:00:17.3]} 32. Rxe3 {[%clk 0:00:26]} 32... c2 {[%clk 0:00:17.1]}
33. Ne2 {[%clk 0:00:24.9]} 33... c1=Q+ {[%clk 0:00:15.5]} 34. Nxc1 {[%clk
0:00:25]} 34... Rxc1+ {[%clk 0:00:16]} 35. Kh2 {[%clk 0:00:25.6]} 35... Kxg7
{[%clk 0:00:14.9]} 36. Ra3 {[%clk 0:00:25.5]} 36... Rb4 {[%clk 0:00:14.3]} 37.
Rg3+ {[%clk 0:00:24.2]} 37... Kf8 {[%clk 0:00:14]} 38. Rf3 {[%clk 0:00:24.5]}
38... Rc2 {[%clk 0:00:11.9]} 39. Rg3 {[%clk 0:00:23.1]} 39... Rbb2 {[%clk
0:00:11.5]} 40. h4 {[%clk 0:00:23.1]} 40... Rxg2+ {[%clk 0:00:11.5]} 41. Rxg2
{[%clk 0:00:22.6]} 41... Rxg2+ {[%clk 0:00:12.4]} 42. Kxg2 {[%clk 0:00:22.9]}
42... d4 {[%clk 0:00:12.9]} 43. Kf3 {[%clk 0:00:22.2]} 43... d3 {[%clk
0:00:12.6]} 44. Ke3 {[%clk 0:00:22.5]} 44... Bb5 {[%clk 0:00:12.2]} 45. Kd2
{[%clk 0:00:22.3]} 45... f6 {[%clk 0:00:10.9]} 46. a4 {[%clk 0:00:22.3]} 46...
Ba6 {[%clk 0:00:10.1]} 47. exf6 {[%clk 0:00:21.9]} 47... Kf7 {[%clk 0:00:10.4]}
48. a5 {[%clk 0:00:20.7]} 48... Kxf6 {[%clk 0:00:10.9]} 49. h5 {[%clk
0:00:21.1]} 49... Kg5 {[%clk 0:00:11.1]} 50. Ke3 {[%clk 0:00:21.4]} 50... Kxh5
{[%clk 0:00:11.5]} 51. Kd2 {[%clk 0:00:21.7]} 51... Kg5 {[%clk 0:00:11.7]} 52.
Ke3 {[%clk 0:00:22.6]} 52... h5 {[%clk 0:00:12.3]} 53. Kd2 {[%clk 0:00:23.5]}
53... h4 {[%clk 0:00:13.2]} 54. Ke3 {[%clk 0:00:23.6]} 54... h3 {[%clk
0:00:13.8]} 55. Kf2 {[%clk 0:00:24.5]} 55... h2 {[%clk 0:00:13.9]} 56. Kg3
{[%clk 0:00:25.4]} 56... h1=Q {[%clk 0:00:11.7]} 57. Kf2 {[%clk 0:00:25.1]}
57... Qh2+ {[%clk 0:00:11.8]} 58. Ke3 {[%clk 0:00:26]} 58... Qe2+ {[%clk
0:00:11.4]} 59. Kd4 {[%clk 0:00:25.9]} 59... d2 {[%clk 0:00:10.9]} 60. Kc3
{[%clk 0:00:26.8]} 60... d1=Q {[%clk 0:00:10.1]} 61. Kb4 {[%clk 0:00:27.1]}
61... Qc4+ {[%clk 0:00:09.3]} 62. Ka3 {[%clk 0:00:27.1]} 62... Qda4+ {[%clk
0:00:09.5]} 63. Kb2 {[%clk 0:00:26.8]} 63... Qcc2# {[%clk 0:00:10.4]} 0-1

[Event "Early-Titled-Tuesday-Blitz-January-30-2024"]
[Site "Chess.com"]
[Date "2024.01.30"]
[Round "11"]
[White "LimeInTheCoconut"]
[Black "cristiano78"]
[Result "1-0"]
[WhiteElo "2475"]
[BlackElo "2292"]
[TimeControl "180+1"]
[EndTime "10:12:49 PST"]
[Termination "LimeInTheCoconut won by resignation"]

1. e4 {[%clk 0:03:00.9]} 1... c5 {[%clk 0:02:59.5]} 2. Nf3 {[%clk 0:03:00.6]}
2... d6 {[%clk 0:03:00]} 3. c3 {[%clk 0:03:00.5]} 3... Nf6 {[%clk 0:02:59.6]} 4.
h3 {[%clk 0:03:00.5]} 4... Bd7 {[%clk 0:02:59.1]} 5. Bd3 {[%clk 0:02:58.8]} 5...
Bc6 {[%clk 0:02:58.9]} 6. Qe2 {[%clk 0:02:58.5]} 6... e5 {[%clk 0:02:58.6]} 7.
Bc2 {[%clk 0:02:58.2]} 7... Be7 {[%clk 0:02:56.9]} 8. d4 {[%clk 0:02:58.3]} 8...
cxd4 {[%clk 0:02:56.1]} 9. cxd4 {[%clk 0:02:59.2]} 9... Qc7 {[%clk 0:02:53.1]}
10. Nc3 {[%clk 0:02:54.9]} 10... a6 {[%clk 0:02:52.5]} 11. a4 {[%clk 0:02:50.7]}
11... O-O {[%clk 0:02:49.4]} 12. O-O {[%clk 0:02:50.3]} 12... Rc8 {[%clk
0:02:43.6]} 13. Be3 {[%clk 0:02:28.9]} 13... b6 {[%clk 0:02:31.1]} 14. Rfc1
{[%clk 0:02:27]} 14... Nbd7 {[%clk 0:02:17.6]} 15. Bb3 {[%clk 0:02:10]} 15...
Qd8 {[%clk 0:02:07.5]} 16. Ng5 {[%clk 0:01:57.8]} 16... exd4 {[%clk 0:01:33.2]}
17. Nxf7 {[%clk 0:01:40.8]} 17... Qf8 {[%clk 0:01:30.6]} 18. Bxd4 {[%clk
0:01:35.4]} 18... Nc5 {[%clk 0:01:13]} 19. Bxc5 {[%clk 0:01:23.7]} 19... dxc5
{[%clk 0:01:11.9]} 20. e5 {[%clk 0:01:04.9]} 20... Ne8 {[%clk 0:01:09.2]} 21.
Qg4 {[%clk 0:00:50.6]} 21... Rc7 {[%clk 0:00:58.1]} 22. Nd8+ {[%clk 0:00:31]}
22... Kh8 {[%clk 0:00:56]} 23. Nf7+ {[%clk 0:00:24.1]} 23... Kg8 {[%clk
0:00:53.6]} 24. Rd1 {[%clk 0:00:20.5]} 24... g6 {[%clk 0:00:43.5]} 25. Nd8+
{[%clk 0:00:17.4]} 25... Kh8 {[%clk 0:00:43]} 26. Nxc6 {[%clk 0:00:18]} 26...
Rxc6 {[%clk 0:00:41.7]} 27. Bd5 {[%clk 0:00:18.5]} 27... Rcc8 {[%clk 0:00:39.8]}
28. Bxa8 {[%clk 0:00:18.2]} 28... Rxa8 {[%clk 0:00:39.5]} 29. Nd5 {[%clk
0:00:18.9]} 29... Ng7 {[%clk 0:00:38.1]} 30. Nxe7 {[%clk 0:00:17.6]} 30... Qxe7
{[%clk 0:00:38.1]} 31. Rd5 {[%clk 0:00:12.9]} 31... Nf5 {[%clk 0:00:37.1]} 32.
Rad1 {[%clk 0:00:12.7]} 32... Re8 {[%clk 0:00:34.3]} 33. Qe4 {[%clk 0:00:10.1]}
33... h5 {[%clk 0:00:31.9]} 34. Rd7 {[%clk 0:00:06.1]} 34... Qxe5 {[%clk
0:00:31.3]} 35. Qxe5+ {[%clk 0:00:07]} 35... Rxe5 {[%clk 0:00:31.4]} 36. Rb7
{[%clk 0:00:07.5]} 36... Re8 {[%clk 0:00:24.8]} 37. Rdd7 {[%clk 0:00:05.6]}
37... b5 {[%clk 0:00:23.3]} 38. axb5 {[%clk 0:00:05.5]} 38... axb5 {[%clk
0:00:23.7]} 39. Rxb5 {[%clk 0:00:06.1]} 39... Kg8 {[%clk 0:00:21]} 40. Rxc5
{[%clk 0:00:05.1]} 40... Re1+ {[%clk 0:00:20]} 41. Kh2 {[%clk 0:00:04.8]} 41...
Kf8 {[%clk 0:00:19.4]} 42. Rc8+ {[%clk 0:00:04.7]} 42... Re8 {[%clk 0:00:17]}
43. Rxe8+ {[%clk 0:00:05.6]} 43... Kxe8 {[%clk 0:00:17.6]} 44. Ra7 {[%clk
0:00:06.3]} 44... Nh4 {[%clk 0:00:15.1]} 45. b4 {[%clk 0:00:07.2]} 45... g5
{[%clk 0:00:14.3]} 46. Ra5 {[%clk 0:00:06.4]} 46... g4 {[%clk 0:00:14.1]} 47.
Rxh5 {[%clk 0:00:06.5]} 47... gxh3 {[%clk 0:00:14]} 48. Rxh4 {[%clk 0:00:06.7]}
48... hxg2 {[%clk 0:00:14.2]} 49. Kxg2 {[%clk 0:00:07]} 1-0

[Event "Early-Titled-Tuesday-Blitz-January-30-2024"]
[Site "Chess.com"]
[Date "2024.01.30"]
[Round "11"]
[White "Irishchessman16"]
[Black "hsd2016"]
[Result "1-0"]
[WhiteElo "2492"]
[BlackElo "2319"]
[TimeControl "180+1"]
[EndTime "10:12:49 PST"]
[Termination "Irishchessman16 won by resignation"]

1. d4 {[%clk 0:02:51.8]} 1... d5 {[%clk 0:02:56]} 2. c4 {[%clk 0:02:51.4]} 2...
c6 {[%clk 0:02:56.6]} 3. cxd5 {[%clk 0:02:49.9]} 3... cxd5 {[%clk 0:02:57.2]} 4.
Bf4 {[%clk 0:02:50]} 4... Nf6 {[%clk 0:02:57]} 5. e3 {[%clk 0:02:50.3]} 5... Nc6
{[%clk 0:02:57]} 6. Nc3 {[%clk 0:02:51]} 6... Bf5 {[%clk 0:02:57.4]} 7. Be2
{[%clk 0:02:47.5]} 7... e6 {[%clk 0:02:57.8]} 8. Qb3 {[%clk 0:02:44.3]} 8... Bb4
{[%clk 0:02:57.4]} 9. Nf3 {[%clk 0:02:34.4]} 9... O-O {[%clk 0:02:54.5]} 10. O-O
{[%clk 0:02:33.7]} 10... a6 {[%clk 0:02:53.9]} 11. Rfc1 {[%clk 0:02:32.8]} 11...
Rc8 {[%clk 0:02:53.6]} 12. h3 {[%clk 0:02:31]} 12... Qe7 {[%clk 0:02:33.7]} 13.
Na4 {[%clk 0:02:29.1]} 13... Na5 {[%clk 0:02:32.3]} 14. Qd1 {[%clk 0:02:28.1]}
14... b5 {[%clk 0:02:31.3]} 15. Nc3 {[%clk 0:02:11]} 15... Bxc3 {[%clk
0:02:29.6]} 16. Rxc3 {[%clk 0:02:10.3]} 16... Rxc3 {[%clk 0:02:29.4]} 17. bxc3
{[%clk 0:02:10.6]} 17... Ne4 {[%clk 0:02:26.2]} 18. Qe1 {[%clk 0:02:05.6]} 18...
Rc8 {[%clk 0:02:25.6]} 19. a4 {[%clk 0:02:04.9]} 19... Nb3 {[%clk 0:02:22.5]}
20. axb5 {[%clk 0:01:32]} 20... Nxa1 {[%clk 0:02:21.1]} 21. Qxa1 {[%clk
0:01:32]} 21... Nxc3 {[%clk 0:02:20.4]} 22. Bf1 {[%clk 0:01:23.4]} 22... axb5
{[%clk 0:02:19.3]} 23. Qa6 {[%clk 0:01:22.7]} 23... Qe8 {[%clk 0:02:00]} 24. Qb7
{[%clk 0:01:03]} 24... f6 {[%clk 0:01:43.6]} 25. g4 {[%clk 0:00:58.2]} 25... Bg6
{[%clk 0:01:37.3]} 26. h4 {[%clk 0:00:57]} 26... Be4 {[%clk 0:00:51.7]} 27. Nd2
{[%clk 0:00:40]} 27... Rd8 {[%clk 0:00:36.8]} 28. h5 {[%clk 0:00:32.4]} 28...
Qd7 {[%clk 0:00:28.8]} 29. Qb6 {[%clk 0:00:27.8]} 29... e5 {[%clk 0:00:28.8]}
30. Bg3 {[%clk 0:00:21]} 30... exd4 {[%clk 0:00:26.9]} 31. exd4 {[%clk
0:00:20.1]} 31... Re8 {[%clk 0:00:23.2]} 32. Qc5 {[%clk 0:00:19.4]} 32... Rc8
{[%clk 0:00:21.1]} 33. Qb6 {[%clk 0:00:19.5]} 33... Qxg4 {[%clk 0:00:19.6]} 34.
Qb7 {[%clk 0:00:19.4]} 34... Re8 {[%clk 0:00:13.8]} 35. Qc6 {[%clk 0:00:19]}
35... Qe6 {[%clk 0:00:13.1]} 36. Qxc3 {[%clk 0:00:18.5]} 36... Qf5 {[%clk
0:00:10.8]} 37. Nxe4 {[%clk 0:00:17.9]} 37... dxe4 {[%clk 0:00:11.1]} 38. Qb3+
{[%clk 0:00:17.2]} 38... Kh8 {[%clk 0:00:10.9]} 39. Bxb5 {[%clk 0:00:16.5]}
39... Rc8 {[%clk 0:00:09.1]} 40. Bc4 {[%clk 0:00:15.7]} 40... Qxh5 {[%clk
0:00:08.8]} 41. d5 {[%clk 0:00:13.5]} 41... Ra8 {[%clk 0:00:02.6]} 42. Qb2
{[%clk 0:00:09]} 42... Rc8 {[%clk 0:00:02.7]} 43. Bb3 {[%clk 0:00:07.5]} 43...
Qf3 {[%clk 0:00:01.5]} 44. d6 {[%clk 0:00:07.4]} 44... e3 {[%clk 0:00:02.2]} 45.
d7 {[%clk 0:00:06.3]} 45... Rd8 {[%clk 0:00:02.8]} 46. Qd4 {[%clk 0:00:05.4]}
46... e2 {[%clk 0:00:03.1]} 47. Qe3 {[%clk 0:00:03.8]} 47... Qe4 {[%clk
0:00:03.8]} 48. Qxe4 {[%clk 0:00:03.7]} 1-0